[Event "*** Titled Tuesday Blitz"]
[Site "Chess.com"]
[Date "2020.05.12"]
[Round "10"]
[White "OMGCovid-19"]
[Black "DonBroca"]
[Result "0-1"]
[WhiteElo "1923"]
[BlackElo "2194"]
[TimeControl "180+1"]
[EndTime "11:53:53 PDT"]
[Termination "DonBroca won on time"]

1. d4 {[%clk 0:03:00.9]} 1... Nf6 {[%clk 0:02:59.1]} 2. Nf3 {[%clk 0:03:00.8]}
2... e6 {[%clk 0:02:57.4]} 3. Bg5 {[%clk 0:03:00.3]} 3... d5 {[%clk 0:02:57.8]}
4. e3 {[%clk 0:02:59.8]} 4... Be7 {[%clk 0:02:57.8]} 5. Bd3 {[%clk 0:02:59.6]}
5... O-O {[%clk 0:02:58.1]} 6. O-O {[%clk 0:02:59.1]} 6... h6 {[%clk 0:02:58.6]}
7. Bh4 {[%clk 0:02:59.2]} 7... b6 {[%clk 0:02:58.4]} 8. Nbd2 {[%clk 0:02:58.6]}
8... Bb7 {[%clk 0:02:58.9]} 9. Ne5 {[%clk 0:02:57.6]} 9... Nfd7 {[%clk
0:02:57.6]} 10. Bxe7 {[%clk 0:02:55.9]} 10... Qxe7 {[%clk 0:02:57.6]} 11. f4
{[%clk 0:02:56.5]} 11... Nxe5 {[%clk 0:02:51.4]} 12. fxe5 {[%clk 0:02:56.3]}
12... f5 {[%clk 0:02:51.7]} 13. exf6 {[%clk 0:02:52.8]} 13... Rxf6 {[%clk
0:02:51.2]} 14. Nf3 {[%clk 0:02:52]} 14... Nd7 {[%clk 0:02:49.4]} 15. c3 {[%clk
0:02:50.9]} 15... Raf8 {[%clk 0:02:48.1]} 16. Bc2 {[%clk 0:02:50.1]} 16... e5
{[%clk 0:02:47.9]} 17. dxe5 {[%clk 0:02:49.1]} 17... Nxe5 {[%clk 0:02:47.6]} 18.
Qe2 {[%clk 0:02:20.2]} 18... Nc4 {[%clk 0:02:35.6]} 19. e4 {[%clk 0:01:57.1]}
19... Qc5+ {[%clk 0:02:08.5]} 20. Kh1 {[%clk 0:01:51.7]} 20... Ne3 {[%clk
0:02:02]} 21. e5 {[%clk 0:01:22.2]} 21... Nxc2 {[%clk 0:01:30.4]} 22. exf6
{[%clk 0:00:57.9]} 22... Nxa1 {[%clk 0:01:29.1]} 23. Qe6+ {[%clk 0:00:48.6]}
23... Kh7 {[%clk 0:01:14.1]} 24. fxg7 {[%clk 0:00:27.7]} 24... Kxg7 {[%clk
0:01:12]} 25. Qe5+ {[%clk 0:00:21.3]} 25... Kg8 {[%clk 0:00:58.1]} 26. Rxa1
{[%clk 0:00:17.5]} 26... d4 {[%clk 0:00:46.3]} 27. Qe6+ {[%clk 0:00:15.9]} 27...
Kg7 {[%clk 0:00:35.4]} 28. Ne5 {[%clk 0:00:14.9]} 28... Rf6 {[%clk 0:00:19.8]}
29. Qd7+ {[%clk 0:00:09.3]} 29... Kh8 {[%clk 0:00:19.1]} 30. Nf7+ {[%clk
0:00:07.9]} 30... Kg8 {[%clk 0:00:15.8]} 31. Nd8 {[%clk 0:00:07.3]} 31... Bxg2+
{[%clk 0:00:08.5]} 32. Kxg2 {[%clk 0:00:04.5]} 32... Qg5+ {[%clk 0:00:08.8]} 33.
Kh1 {[%clk 0:00:03.4]} 33... Qf4 {[%clk 0:00:06.8]} 34. Rg1+ {[%clk 0:00:02.3]}
34... Qg5 {[%clk 0:00:06.3]} 35. Rxg5+ {[%clk 0:00:01.6]} 35... hxg5 {[%clk
0:00:07.2]} 36. Qe8+ {[%clk 0:00:01.3]} 36... Kg7 {[%clk 0:00:07.1]} 37. Qe7+
{[%clk 0:00:01.3]} 37... Kg6 {[%clk 0:00:07.2]} 0-1

[Event "*** Titled Tuesday Blitz"]
[Site "Chess.com"]
[Date "2020.05.12"]
[Round "10"]
[White "lifeissofun"]
[Black "Zmeeed63"]
[Result "1-0"]
[WhiteElo "2340"]
[BlackElo "2193"]
[TimeControl "180+1"]
[EndTime "11:53:55 PDT"]
[Termination "lifeissofun won by checkmate"]

1. e4 {[%clk 0:03:00.9]} 1... Nc6 {[%clk 0:02:59]} 2. Nf3 {[%clk 0:03:01.1]}
2... d6 {[%clk 0:02:58.1]} 3. d4 {[%clk 0:03:00]} 3... Bg4 {[%clk 0:02:57.9]} 4.
Bb5 {[%clk 0:02:58.9]} 4... a6 {[%clk 0:02:57.2]} 5. Bc4 {[%clk 0:02:55.4]} 5...
e6 {[%clk 0:02:55.8]} 6. c3 {[%clk 0:02:54.2]} 6... d5 {[%clk 0:02:55.4]} 7. Bd3
{[%clk 0:02:53.6]} 7... dxe4 {[%clk 0:02:54]} 8. Bxe4 {[%clk 0:02:54.5]} 8...
Nf6 {[%clk 0:02:54.4]} 9. Bxc6+ {[%clk 0:02:53.5]} 9... bxc6 {[%clk 0:02:55.3]}
10. O-O {[%clk 0:02:53.6]} 10... Qd5 {[%clk 0:02:49.2]} 11. Nbd2 {[%clk
0:02:50.9]} 11... Bd6 {[%clk 0:02:46]} 12. h3 {[%clk 0:02:48.9]} 12... Bh5
{[%clk 0:02:42.1]} 13. Qa4 {[%clk 0:02:48.1]} 13... Qb5 {[%clk 0:02:39.1]} 14.
Qc2 {[%clk 0:02:46.8]} 14... Bg6 {[%clk 0:02:36.6]} 15. Qd1 {[%clk 0:02:43.8]}
15... O-O {[%clk 0:02:32.2]} 16. c4 {[%clk 0:02:40.5]} 16... Qb8 {[%clk
0:02:25.3]} 17. Qa4 {[%clk 0:02:39]} 17... c5 {[%clk 0:02:23.7]} 18. dxc5 {[%clk
0:02:32.5]} 18... Bxc5 {[%clk 0:02:24.6]} 19. Ne5 {[%clk 0:02:27.8]} 19... Bf5
{[%clk 0:02:15.3]} 20. Ndf3 {[%clk 0:02:20.4]} 20... Qb6 {[%clk 0:02:02.7]} 21.
Bg5 {[%clk 0:02:13.6]} 21... Qxb2 {[%clk 0:01:43.4]} 22. Bxf6 {[%clk 0:02:11.1]}
22... gxf6 {[%clk 0:01:42.7]} 23. Nd7 {[%clk 0:02:09.9]} 23... Bxf2+ {[%clk
0:01:42.5]} 24. Kh1 {[%clk 0:01:22.1]} 24... Rfd8 {[%clk 0:01:22.8]} 25. Rad1
{[%clk 0:01:13.6]} 25... Bg3 {[%clk 0:01:11.2]} 26. Rd2 {[%clk 0:01:08.1]} 26...
Qc3 {[%clk 0:01:04.9]} 27. Rfd1 {[%clk 0:00:51.3]} 27... Bd6 {[%clk 0:00:52.9]}
28. Nd4 {[%clk 0:00:48.3]} 28... Qg3 {[%clk 0:00:21.7]} 29. Nxf6+ {[%clk
0:00:43.3]} 29... Kh8 {[%clk 0:00:20.4]} 30. Nf3 {[%clk 0:00:35.4]} 30... Bxh3
{[%clk 0:00:18.2]} 31. Qc6 {[%clk 0:00:26]} 31... Bf5 {[%clk 0:00:14.9]} 32. Nh5
{[%clk 0:00:23.5]} 32... Qg6 {[%clk 0:00:13.4]} 33. Nf4 {[%clk 0:00:20.3]} 33...
Qh6+ {[%clk 0:00:12.1]} 34. Nh3 {[%clk 0:00:19]} 34... Bxh3 {[%clk 0:00:11.7]}
35. gxh3 {[%clk 0:00:19.9]} 35... Qxh3+ {[%clk 0:00:12.4]} 36. Kg1 {[%clk
0:00:20.5]} 36... Qxf3 {[%clk 0:00:12.4]} 37. Qxf3 {[%clk 0:00:19.3]} 37... Rg8+
{[%clk 0:00:13.3]} 38. Rg2 {[%clk 0:00:18.7]} 38... Bc5+ {[%clk 0:00:13.2]} 39.
Kh1 {[%clk 0:00:18.8]} 39... Rgd8 {[%clk 0:00:10.4]} 40. Qf6# {[%clk 0:00:17.9]}
1-0

[Event "*** Titled Tuesday Blitz"]
[Site "Chess.com"]
[Date "2020.05.12"]
[Round "10"]
[White "L_lorenzo"]
[Black "Ariadna_Atreides"]
[Result "1-0"]
[WhiteElo "2204"]
[BlackElo "2082"]
[TimeControl "180+1"]
[EndTime "11:53:55 PDT"]
[Termination "L_lorenzo won on time"]

1. d4 {[%clk 0:03:00]} 1... e6 {[%clk 0:02:59.3]} 2. c4 {[%clk 0:02:59.7]} 2...
Bb4+ {[%clk 0:02:58.4]} 3. Nd2 {[%clk 0:02:58.4]} 3... f5 {[%clk 0:02:54.5]} 4.
Nf3 {[%clk 0:02:55.3]} 4... Nf6 {[%clk 0:02:52.3]} 5. e3 {[%clk 0:02:55.8]} 5...
b6 {[%clk 0:02:47.6]} 6. Bd3 {[%clk 0:02:56.1]} 6... Bb7 {[%clk 0:02:47.7]} 7.
O-O {[%clk 0:02:56.5]} 7... O-O {[%clk 0:02:46.4]} 8. a3 {[%clk 0:02:54.2]} 8...
Bxd2 {[%clk 0:02:42.9]} 9. Nxd2 {[%clk 0:02:53.8]} 9... g6 {[%clk 0:02:27.9]}
10. f3 {[%clk 0:02:53.3]} 10... c5 {[%clk 0:02:19.3]} 11. dxc5 {[%clk
0:02:42.4]} 11... bxc5 {[%clk 0:02:18.7]} 12. b4 {[%clk 0:02:42.2]} 12... d6
{[%clk 0:02:11.9]} 13. Bb2 {[%clk 0:02:41.2]} 13... Nc6 {[%clk 0:02:07.2]} 14.
b5 {[%clk 0:02:23.4]} 14... Ne5 {[%clk 0:02:03.3]} 15. Be2 {[%clk 0:02:16.5]}
15... Qc7 {[%clk 0:02:01.8]} 16. Qc2 {[%clk 0:02:14.9]} 16... h6 {[%clk
0:01:39.4]} 17. a4 {[%clk 0:02:14.5]} 17... Kh7 {[%clk 0:01:33.2]} 18. a5 {[%clk
0:02:13.7]} 18... Rae8 {[%clk 0:01:28.9]} 19. Qc3 {[%clk 0:02:12.9]} 19... Qf7
{[%clk 0:01:20.6]} 20. Rfd1 {[%clk 0:02:01.9]} 20... Ned7 {[%clk 0:01:05.4]} 21.
Nb3 {[%clk 0:01:48.9]} 21... d5 {[%clk 0:00:57.7]} 22. cxd5 {[%clk 0:01:27.1]}
22... Nxd5 {[%clk 0:00:57.1]} 23. Qc1 {[%clk 0:01:06.8]} 23... Rc8 {[%clk
0:00:51.2]} 24. Bc4 {[%clk 0:00:57.9]} 24... f4 {[%clk 0:00:46]} 25. e4 {[%clk
0:00:48.4]} 25... Ne3 {[%clk 0:00:45.2]} 26. Rd6 {[%clk 0:00:37.7]} 26... Rfe8
{[%clk 0:00:31]} 27. Qc3 {[%clk 0:00:16.1]} 27... Qe7 {[%clk 0:00:11.5]} 28.
Rxe6 {[%clk 0:00:15.6]} 28... Qf8 {[%clk 0:00:08.7]} 29. Rxe8 {[%clk 0:00:15]}
29... Rxe8 {[%clk 0:00:08.1]} 30. Bf1 {[%clk 0:00:13.7]} 30... Bc8 {[%clk
0:00:07]} 31. Nxc5 {[%clk 0:00:13.7]} 31... Qxc5 {[%clk 0:00:06]} 32. Qxc5
{[%clk 0:00:13.3]} 32... Nxc5 {[%clk 0:00:06.2]} 33. Bd4 {[%clk 0:00:13.3]}
33... Nxf1 {[%clk 0:00:04.3]} 34. Bxc5 {[%clk 0:00:12.2]} 34... Ne3 {[%clk
0:00:03.2]} 35. Bxa7 {[%clk 0:00:12.1]} 35... Rd8 {[%clk 0:00:02.7]} 36. Bxe3
{[%clk 0:00:12.1]} 36... fxe3 {[%clk 0:00:01.9]} 37. a6 {[%clk 0:00:11.2]} 1-0

[Event "*** Titled Tuesday Blitz"]
[Site "Chess.com"]
[Date "2020.05.12"]
[Round "10"]
[White "maciek_92"]
[Black "Lion-Al-Messi"]
[Result "1-0"]
[WhiteElo "2637"]
[BlackElo "2453"]
[TimeControl "180+1"]
[EndTime "11:53:56 PDT"]
[Termination "maciek_92 won on time"]

1. e4 {[%clk 0:03:00.9]} 1... e6 {[%clk 0:02:56.3]} 2. d4 {[%clk 0:02:59.9]}
2... d5 {[%clk 0:02:56.4]} 3. Nd2 {[%clk 0:02:58]} 3... c5 {[%clk 0:02:55.8]} 4.
Ngf3 {[%clk 0:02:58.1]} 4... cxd4 {[%clk 0:02:53.9]} 5. exd5 {[%clk 0:02:58.6]}
5... Qxd5 {[%clk 0:02:54.8]} 6. Bc4 {[%clk 0:02:58.9]} 6... Qd6 {[%clk
0:02:54.3]} 7. O-O {[%clk 0:02:58.2]} 7... Nf6 {[%clk 0:02:54.9]} 8. Nb3 {[%clk
0:02:55.3]} 8... Nc6 {[%clk 0:02:55.1]} 9. Nbxd4 {[%clk 0:02:54.4]} 9... Nxd4
{[%clk 0:02:56]} 10. Nxd4 {[%clk 0:02:54.9]} 10... Be7 {[%clk 0:02:56]} 11. c3
{[%clk 0:02:50.7]} 11... O-O {[%clk 0:02:55.6]} 12. Qe2 {[%clk 0:02:50.2]} 12...
a6 {[%clk 0:02:55.7]} 13. Rd1 {[%clk 0:02:47.9]} 13... Qc7 {[%clk 0:02:43.7]}
14. Bd3 {[%clk 0:02:47.8]} 14... b5 {[%clk 0:02:39.8]} 15. a4 {[%clk 0:02:45.6]}
15... b4 {[%clk 0:02:30.7]} 16. cxb4 {[%clk 0:02:43.3]} 16... Bxb4 {[%clk
0:02:31.6]} 17. Bg5 {[%clk 0:02:42.2]} 17... Nd5 {[%clk 0:02:20.6]} 18. Rac1
{[%clk 0:02:30]} 18... Qb6 {[%clk 0:02:11.7]} 19. Nc6 {[%clk 0:01:38.1]} 19...
Bb7 {[%clk 0:02:08.9]} 20. a5 {[%clk 0:01:37.8]} 20... Bxa5 {[%clk 0:02:04.9]}
21. Bxh7+ {[%clk 0:01:36.1]} 21... Kxh7 {[%clk 0:02:02.7]} 22. Rxd5 {[%clk
0:01:33.1]} 22... Bxc6 {[%clk 0:01:56.3]} 23. Be3 {[%clk 0:01:24.5]} 23... Bxd5
{[%clk 0:01:48.3]} 24. Bxb6 {[%clk 0:01:21]} 24... Bxb6 {[%clk 0:01:49.2]} 25.
Rc3 {[%clk 0:01:20.9]} 25... Kg8 {[%clk 0:01:31.2]} 26. h4 {[%clk 0:01:17.5]}
26... Rac8 {[%clk 0:01:20.5]} 27. Qxa6 {[%clk 0:01:14.6]} 27... Rxc3 {[%clk
0:01:19.8]} 28. bxc3 {[%clk 0:01:15.5]} 28... Rb8 {[%clk 0:01:00.4]} 29. c4
{[%clk 0:01:12.5]} 29... Be4 {[%clk 0:00:55.8]} 30. Qa3 {[%clk 0:01:09]} 30...
Bc7 {[%clk 0:00:52.5]} 31. f3 {[%clk 0:01:07.1]} 31... Bg3 {[%clk 0:00:48.6]}
32. Kf1 {[%clk 0:01:06.7]} 32... Rb1+ {[%clk 0:00:37]} 33. Ke2 {[%clk
0:01:06.2]} 33... Re1+ {[%clk 0:00:36.6]} 34. Kd2 {[%clk 0:01:06.5]} 34... Bf5
{[%clk 0:00:21.4]} 35. Qe7 {[%clk 0:01:03.3]} 35... Rg1 {[%clk 0:00:13.3]} 36.
Qe8+ {[%clk 0:00:51.7]} 36... Kh7 {[%clk 0:00:13.2]} 37. Qxf7 {[%clk 0:00:52.6]}
37... Rxg2+ {[%clk 0:00:13.4]} 38. Ke3 {[%clk 0:00:53.2]} 38... Bf2+ {[%clk
0:00:08.9]} 39. Kf4 {[%clk 0:00:51]} 39... Rg6 {[%clk 0:00:05.4]} 40. Qe7 {[%clk
0:00:45.9]} 40... Rf6 {[%clk 0:00:05.2]} 41. Ke5 {[%clk 0:00:46]} 41... Bxh4
{[%clk 0:00:04.3]} 42. c5 {[%clk 0:00:42.9]} 42... Bg3+ {[%clk 0:00:04.5]} 43.
Kd4 {[%clk 0:00:42.7]} 43... Bf2+ {[%clk 0:00:03.7]} 44. Kc4 {[%clk 0:00:40]}
44... e5 {[%clk 0:00:03]} 45. Qxe5 {[%clk 0:00:39.8]} 45... Be6+ {[%clk
0:00:03.3]} 46. Kd3 {[%clk 0:00:37.2]} 46... Bf7 {[%clk 0:00:03.3]} 47. Ke2
{[%clk 0:00:36.4]} 47... Bh4 {[%clk 0:00:02.4]} 48. Qe4+ {[%clk 0:00:35.5]} 1-0

[Event "*** Titled Tuesday Blitz"]
[Site "Chess.com"]
[Date "2020.05.12"]
[Round "10"]
[White "Shuvalov"]
[Black "GMStefanova"]
[Result "0-1"]
[WhiteElo "2447"]
[BlackElo "2632"]
[TimeControl "180+1"]
[EndTime "11:53:56 PDT"]
[Termination "GMStefanova won on time"]

1. Nf3 {[%clk 0:03:00.9]} 1... d5 {[%clk 0:02:58.1]} 2. c4 {[%clk 0:03:00.8]}
2... d4 {[%clk 0:02:56.4]} 3. b4 {[%clk 0:02:59.2]} 3... Bg4 {[%clk 0:02:55.9]}
4. Qb3 {[%clk 0:02:57.6]} 4... Bxf3 {[%clk 0:02:53.7]} 5. Qxf3 {[%clk
0:02:57.1]} 5... c6 {[%clk 0:02:47.7]} 6. e3 {[%clk 0:02:54.6]} 6... g6 {[%clk
0:02:46.3]} 7. Bb2 {[%clk 0:02:53.8]} 7... Bg7 {[%clk 0:02:46]} 8. Be2 {[%clk
0:02:31.1]} 8... Nh6 {[%clk 0:02:28]} 9. e4 {[%clk 0:02:27.2]} 9... O-O {[%clk
0:02:25.3]} 10. d3 {[%clk 0:02:25.6]} 10... a5 {[%clk 0:02:21.9]} 11. b5 {[%clk
0:02:21.2]} 11... Nd7 {[%clk 0:02:13.1]} 12. O-O {[%clk 0:02:17.9]} 12... a4
{[%clk 0:02:09.2]} 13. Ba3 {[%clk 0:02:15.9]} 13... c5 {[%clk 0:02:04.2]} 14.
Qh3 {[%clk 0:02:08.9]} 14... f5 {[%clk 0:02:00]} 15. Bc1 {[%clk 0:02:04.6]}
15... f4 {[%clk 0:01:50.7]} 16. Nd2 {[%clk 0:01:41.6]} 16... g5 {[%clk
0:01:39.6]} 17. Bh5 {[%clk 0:01:31.6]} 17... Ne5 {[%clk 0:01:35.4]} 18. Be2
{[%clk 0:00:23.8]} 18... Qd6 {[%clk 0:01:28.6]} 19. Qh5 {[%clk 0:00:16.9]} 19...
Qf6 {[%clk 0:01:07.9]} 20. h3 {[%clk 0:00:16.6]} 20... Nhf7 {[%clk 0:00:55.3]}
21. Nf3 {[%clk 0:00:16.1]} 21... Nxf3+ {[%clk 0:00:52.6]} 22. Bxf3 {[%clk
0:00:16.4]} 22... Ne5 {[%clk 0:00:51]} 23. Rd1 {[%clk 0:00:16.6]} 23... Rad8
{[%clk 0:00:43.7]} 24. Ba3 {[%clk 0:00:16.1]} 24... b6 {[%clk 0:00:43.3]} 25.
Rd2 {[%clk 0:00:14.6]} 25... Rd6 {[%clk 0:00:41.7]} 26. Kf1 {[%clk 0:00:13.4]}
26... Rf7 {[%clk 0:00:32.9]} 27. Ke1 {[%clk 0:00:12]} 27... Bf8 {[%clk
0:00:32.6]} 28. Kd1 {[%clk 0:00:11.7]} 28... Qg7 {[%clk 0:00:32]} 29. h4 {[%clk
0:00:07.6]} 29... g4 {[%clk 0:00:17.7]} 30. Be2 {[%clk 0:00:07.7]} 30... f3
{[%clk 0:00:16.4]} 31. Bf1 {[%clk 0:00:06.6]} 31... Rh6 {[%clk 0:00:13.3]} 32.
Qg5 {[%clk 0:00:06.5]} 32... Rg6 {[%clk 0:00:13.6]} 33. Qh5 {[%clk 0:00:06.5]}
33... g3 {[%clk 0:00:12.9]} 34. fxg3 {[%clk 0:00:06.1]} 34... Rxg3 {[%clk
0:00:11.9]} 35. gxf3 {[%clk 0:00:05.8]} 35... Nxf3 {[%clk 0:00:10.8]} 36. Rf2
{[%clk 0:00:04.1]} 36... Rg1 {[%clk 0:00:09.5]} 37. Kc2 {[%clk 0:00:03.9]} 37...
Qg3 {[%clk 0:00:08.8]} 0-1

[Event "*** Titled Tuesday Blitz"]
[Site "Chess.com"]
[Date "2020.05.12"]
[Round "10"]
[White "silverback96"]
[Black "kingofthenil"]
[Result "1/2-1/2"]
[WhiteElo "2276"]
[BlackElo "2466"]
[TimeControl "180+1"]
[EndTime "11:53:57 PDT"]
[Termination "Game drawn by repetition"]

1. Nf3 {[%clk 0:03:00.9]} 1... Nf6 {[%clk 0:02:59]} 2. g3 {[%clk 0:03:01]} 2...
e6 {[%clk 0:02:58.7]} 3. Bg2 {[%clk 0:03:01.5]} 3... d5 {[%clk 0:02:58.4]} 4.
O-O {[%clk 0:03:02]} 4... Be7 {[%clk 0:02:58.1]} 5. c4 {[%clk 0:03:01.9]} 5...
O-O {[%clk 0:02:56.3]} 6. d4 {[%clk 0:03:02.2]} 6... c6 {[%clk 0:02:54.6]} 7.
Nbd2 {[%clk 0:03:01.5]} 7... b6 {[%clk 0:02:52.6]} 8. Qc2 {[%clk 0:03:01.7]}
8... c5 {[%clk 0:02:51.7]} 9. cxd5 {[%clk 0:02:53.7]} 9... exd5 {[%clk
0:02:47.5]} 10. Ne5 {[%clk 0:02:46.9]} 10... Bb7 {[%clk 0:02:20.9]} 11. Ndf3
{[%clk 0:02:46.9]} 11... Na6 {[%clk 0:02:14.1]} 12. Bf4 {[%clk 0:02:37.8]} 12...
Rc8 {[%clk 0:02:09.7]} 13. a3 {[%clk 0:02:23]} 13... cxd4 {[%clk 0:01:58.4]} 14.
Qd1 {[%clk 0:02:23]} 14... Nc5 {[%clk 0:01:55.8]} 15. Nxd4 {[%clk 0:02:22.9]}
15... Ne6 {[%clk 0:01:52.8]} 16. Nxe6 {[%clk 0:02:17.6]} 16... fxe6 {[%clk
0:01:53.7]} 17. Bh3 {[%clk 0:02:09.3]} 17... Kh8 {[%clk 0:00:57.2]} 18. Bxe6
{[%clk 0:02:07.7]} 18... Bd6 {[%clk 0:00:53.4]} 19. Bxc8 {[%clk 0:01:56.4]}
19... Qxc8 {[%clk 0:00:37.2]} 20. Rc1 {[%clk 0:01:52.9]} 20... Qh3 {[%clk
0:00:36.8]} 21. Qd4 {[%clk 0:01:52.5]} 21... Bxe5 {[%clk 0:00:21.7]} 22. Bxe5
{[%clk 0:01:44.6]} 22... Ng4 {[%clk 0:00:21.5]} 23. Bxg7+ {[%clk 0:01:43]} 23...
Kg8 {[%clk 0:00:21]} 24. Qxg4 {[%clk 0:01:43.6]} 24... Qxg4 {[%clk 0:00:20]} 25.
Bxf8 {[%clk 0:01:44.2]} 25... Kxf8 {[%clk 0:00:19.5]} 26. Rc7 {[%clk 0:01:41]}
26... Ba6 {[%clk 0:00:16.3]} 27. Rxa7 {[%clk 0:01:30.9]} 27... Qxe2 {[%clk
0:00:12.5]} 28. Rc1 {[%clk 0:01:30.3]} 28... d4 {[%clk 0:00:12.8]} 29. Rxh7
{[%clk 0:01:24.5]} 29... d3 {[%clk 0:00:06.3]} 30. Rcc7 {[%clk 0:01:18.6]} 30...
Qe1+ {[%clk 0:00:05.8]} 31. Kg2 {[%clk 0:01:18.3]} 31... Qe4+ {[%clk 0:00:06.7]}
32. f3 {[%clk 0:01:17.6]} 32... Qe2+ {[%clk 0:00:06.5]} 33. Kh3 {[%clk
0:01:18.1]} 33... Qe6+ {[%clk 0:00:02.7]} 34. g4 {[%clk 0:01:18.2]} 34... Kg8
{[%clk 0:00:02.7]} 35. Rhe7 {[%clk 0:01:17.5]} 35... Qh6+ {[%clk 0:00:01.6]} 36.
Kg3 {[%clk 0:01:15.8]} 36... Qf8 {[%clk 0:00:02.5]} 37. Red7 {[%clk 0:01:03.4]}
37... Qb8 {[%clk 0:00:02.4]} 38. h4 {[%clk 0:01:00.2]} 38... d2 {[%clk
0:00:01.4]} 39. Rg7+ {[%clk 0:00:33.4]} 39... Kh8 {[%clk 0:00:01.6]} 40. Rh7+
{[%clk 0:00:30.3]} 40... Kg8 {[%clk 0:00:01.8]} 41. Rg7+ {[%clk 0:00:30.9]}
41... Kh8 {[%clk 0:00:01.6]} 42. Rh7+ {[%clk 0:00:27.6]} 42... Kg8 {[%clk
0:00:02.5]} 43. Rg7+ {[%clk 0:00:28.5]} 1/2-1/2

[Event "*** Titled Tuesday Blitz"]
[Site "Chess.com"]
[Date "2020.05.12"]
[Round "10"]
[White "VincentKeymer"]
[Black "LiemLe"]
[Result "0-1"]
[WhiteElo "2759"]
[BlackElo "2969"]
[TimeControl "180+1"]
[EndTime "11:54:00 PDT"]
[Termination "LiemLe won by resignation"]

1. Nf3 {[%clk 0:03:00.5]} 1... c5 {[%clk 0:02:54.3]} 2. c4 {[%clk 0:03:00]} 2...
Nf6 {[%clk 0:02:54]} 3. Nc3 {[%clk 0:03:00.2]} 3... Nc6 {[%clk 0:02:54.2]} 4. g3
{[%clk 0:03:00.1]} 4... g6 {[%clk 0:02:49]} 5. Bg2 {[%clk 0:02:59.8]} 5... d6
{[%clk 0:02:49.1]} 6. O-O {[%clk 0:02:56.8]} 6... Bg7 {[%clk 0:02:48.6]} 7. d4
{[%clk 0:02:56.8]} 7... cxd4 {[%clk 0:02:48.2]} 8. Nxd4 {[%clk 0:02:57.7]} 8...
Bd7 {[%clk 0:02:48.6]} 9. Nc2 {[%clk 0:02:57.1]} 9... h5 {[%clk 0:02:47.7]} 10.
Bg5 {[%clk 0:02:51.4]} 10... Qa5 {[%clk 0:02:27.2]} 11. Qd2 {[%clk 0:02:42.4]}
11... Rc8 {[%clk 0:02:23]} 12. Rad1 {[%clk 0:02:29.6]} 12... Ng4 {[%clk
0:02:06]} 13. Nd5 {[%clk 0:01:39.2]} 13... Qxd2 {[%clk 0:02:06.9]} 14. Rxd2
{[%clk 0:01:39.9]} 14... h4 {[%clk 0:01:35.6]} 15. b3 {[%clk 0:01:29.4]} 15...
hxg3 {[%clk 0:01:27.6]} 16. hxg3 {[%clk 0:01:30.3]} 16... Rh5 {[%clk 0:01:11.4]}
17. Bf4 {[%clk 0:01:24.6]} 17... g5 {[%clk 0:01:11.1]} 18. f3 {[%clk 0:00:58.3]}
18... Nh2 {[%clk 0:00:49.2]} 19. Rfd1 {[%clk 0:00:46.1]} 19... gxf4 {[%clk
0:00:48.7]} 20. Nxf4 {[%clk 0:00:46]} 20... Rh6 {[%clk 0:00:38.4]} 21. e4 {[%clk
0:00:45.7]} 21... Ne5 {[%clk 0:00:28.2]} 22. Ne1 {[%clk 0:00:45]} 22... b5
{[%clk 0:00:27.5]} 23. cxb5 {[%clk 0:00:42.4]} 23... Bxb5 {[%clk 0:00:28.4]} 24.
g4 {[%clk 0:00:27.1]} 24... Rc3 {[%clk 0:00:27.1]} 25. Nh5 {[%clk 0:00:19.9]}
25... Rxh5 {[%clk 0:00:19.6]} 26. gxh5 {[%clk 0:00:18.8]} 26... Nhxf3+ {[%clk
0:00:20.3]} 27. Nxf3 {[%clk 0:00:18.9]} 27... Nxf3+ {[%clk 0:00:21.2]} 28. Bxf3
{[%clk 0:00:19]} 28... Rxf3 {[%clk 0:00:22.1]} 29. Rg2 {[%clk 0:00:19.5]} 29...
Be5 {[%clk 0:00:19]} 30. Rg8+ {[%clk 0:00:18.1]} 30... Kd7 {[%clk 0:00:18.8]}
31. Rg5 {[%clk 0:00:17.3]} 31... Ke6 {[%clk 0:00:17.3]} 32. Kg2 {[%clk
0:00:17.1]} 32... Rf6 {[%clk 0:00:13.8]} 33. Rh1 {[%clk 0:00:15.4]} 33... Bc6
{[%clk 0:00:13.6]} 34. Rh4 {[%clk 0:00:14.4]} 34... Bf4 {[%clk 0:00:13]} 35.
Rgg4 {[%clk 0:00:14.3]} 35... Bxe4+ {[%clk 0:00:12.4]} 36. Kg1 {[%clk
0:00:13.7]} 36... Be3+ {[%clk 0:00:12.2]} 37. Kh2 {[%clk 0:00:13.6]} 37... Rf2+
{[%clk 0:00:06.9]} 38. Kg3 {[%clk 0:00:11.4]} 38... Rg2+ {[%clk 0:00:07.1]} 39.
Kh3 {[%clk 0:00:10.8]} 39... Rxg4 {[%clk 0:00:07.3]} 40. Kxg4 {[%clk 0:00:11]}
40... Bh6 {[%clk 0:00:07]} 41. Kg3 {[%clk 0:00:10.9]} 41... f5 {[%clk
0:00:07.7]} 42. Rh2 {[%clk 0:00:10.3]} 42... Ke5 {[%clk 0:00:07.5]} 43. Rc2
{[%clk 0:00:09.8]} 43... Bxc2 {[%clk 0:00:07.2]} 0-1